bitfinex/quotes_BTCUSD_20250830
["timestamp","ask_amount","ask_price","bid_price","bid_amount"]
[1756573291912,1.25113654,109070.0,109060.0,0.83648882]
[1756573292131,1.25113654,109070.0,109060.0,0.98920882]
[1756573292762,1.25113654,109070.0,109060.0,0.83648882]
[1756573292967,1.25113654,109070.0,109060.0,0.98916882]
[1756573293169,1.25110516,109070.0,109060.0,0.98916882]
[1756573295068,1.25110516,109070.0,109060.0,0.83648882]
[1756573295277,1.25110516,109070.0,109060.0,0.98924882]
[1756573295475,1.09838516,109070.0,109060.0,0.83648882]
[1756573295694,1.25114516,109070.0,109060.0,0.83648882]
[1756573296156,1.25114516,109070.0,109060.0,0.98924882]
[1756573298139,1.25757713,109070.0,109060.0,0.98924882]
[1756573298682,1.10481713,109070.0,109060.0,0.98924882]
[1756573302259,1.10481713,109070.0,109060.0,0.15774]
[1756573303727,0.76093454,109070.0,109060.0,0.15774]
[1756573303948,1.10483685,109070.0,109060.0,0.15774]
[1756573304143,1.10484138,109070.0,109060.0,0.15774]
[1756573306921,1.10484138,109070.0,109060.0,0.00498]
[1756573307151,1.10484138,109070.0,109060.0,0.15766]
[1756573307359,1.10484885,109070.0,109060.0,0.15766]
[1756573307549,1.12465007,109070.0,109060.0,0.15766]
[1756573310640,1.12467938,109070.0,109060.0,0.15766]
[1756573313172,1.12470077,109070.0,109060.0,0.15766]
[1756573314164,1.12472619,109070.0,109060.0,0.15766]
[1756573315047,1.1247263,109070.0,109060.0,0.15766]
[1756573315568,1.1267063,109070.0,109060.0,0.00498]
[1756573315785,1.1267063,109070.0,109060.0,0.15766]
[1756573317662,1.1247263,109070.0,109060.0,0.15766]
[1756573317893,0.88335544,109070.0,109060.0,0.15766]
[1756573318133,0.18339184,109060.0,109040.0,0.25397715]
[1756573318349,0.55097268,109060.0,109050.0,0.15268]
[1756573318576,0.55296268,109060.0,109050.0,0.15764]
[1756573319013,0.58053968,109060.0,109050.0,0.15764]
[1756573319722,0.92245199,109060.0,109050.0,0.15764]
[1756573320064,0.92245199,109060.0,109050.0,0.15792]
[1756573320286,0.92345199,109060.0,109050.0,0.15792]
[1756573320706,0.23564737,109060.0,109050.0,0.15792]
[1756573320880,0.92245199,109060.0,109050.0,0.15792]
[1756573321281,0.92345199,109060.0,109050.0,0.15792]
[1756573321723,0.92345199,109060.0,109050.0,0.15892]
[1756573323479,0.91699659,109060.0,109050.0,0.15892]
[1756573323691,0.92345114,109060.0,109050.0,0.15892]
[1756573325107,0.92345047,109060.0,109050.0,0.15892]
[1756573327221,0.92344993,109060.0,109050.0,0.15892]
[1756573327634,0.92544993,109060.0,109050.0,0.15892]
[1756573333618,0.92344338,109060.0,109050.0,0.3423221]
[1756573334079,0.91698583,109060.0,109050.0,0.3423221]
[1756573334304,0.92344093,109060.0,109050.0,0.3423221]
[1756573335295,0.92344093,109060.0,109050.0,0.15892]
[1756573336172,0.90622346,109060.0,109050.0,0.15892]
[1756573336378,0.92344108,109060.0,109050.0,0.15892]
[1756573336597,0.92544108,109060.0,109050.0,0.15892]
[1756573337832,0.92544119,109060.0,109050.0,0.15892]
[1756573338921,0.92344119,109060.0,109050.0,0.3423221]
[1756573339581,0.23563657,109060.0,109050.0,0.3423221]
[1756573339816,0.05225128,109060.0,109050.0,0.3423221]
[1756573340032,0.7400559,109060.0,109050.0,0.3423221]
[1756573340243,0.92344119,109060.0,109050.0,0.3423221]
[1756573341129,0.89976691,109060.0,109050.0,0.3423221]
[1756573341351,0.92344188,109060.0,109050.0,0.3423221]
[1756573343117,0.92344188,109060.0,109050.0,0.15892]
[1756573344030,0.92344188,109060.0,109050.0,0.3423221]
[1756573344684,0.92344251,109060.0,109050.0,0.3423221]
[1756573344919,0.92344419,109060.0,109050.0,0.3423221]
[1756573346694,0.92344419,109060.0,109050.0,0.15892]
[1756573347046,0.92544419,109060.0,109050.0,0.15872]
[1756573349581,0.92544419,109060.0,109050.0,0.3421221]
[1756573351302,0.92544419,109060.0,109050.0,0.15872]
[1756573353429,0.92544419,109060.0,109050.0,0.3421221]
[1756573354349,0.05225428,109060.0,109050.0,0.3421221]
[1756573354567,0.7400589,109060.0,109050.0,0.3421221]
[1756573355205,0.7390589,109060.0,109050.0,0.3421221]
[1756573355416,0.89876691,109060.0,109050.0,0.3421221]
[1756573355618,0.92244805,109060.0,109050.0,0.3411221]
[1756573355849,0.92244805,109060.0,109050.0,0.3421221]
[1756573356661,0.92442805,109060.0,109050.0,0.15872]
[1756573357082,0.92442805,109060.0,109050.0,0.15876]
[1756573357787,0.92442805,109060.0,109050.0,0.3421621]
[1756573359096,0.92442806,109060.0,109050.0,0.3421621]
[1756573360151,0.92442806,109060.0,109050.0,0.3411621]
[1756573360567,0.92442806,109060.0,109050.0,0.3481621]
[1756573361014,0.92442806,109060.0,109050.0,0.3521621]
[1756573362017,0.58052575,109060.0,109050.0,0.3521621]
[1756573363621,0.57854575,109060.0,109050.0,0.3521621]
[1756573363874,0.58053575,109060.0,109050.0,0.3521621]
[1756573365836,0.57407726,109060.0,109050.0,0.3521621]
[1756573366042,0.58053568,109060.0,109050.0,0.3521621]
[1756573366461,0.5568546,109060.0,109050.0,0.3521621]
[1756573366620,0.58053567,109060.0,109050.0,0.3521621]
[1756573372900,0.58053567,109060.0,109050.0,0.3491721]
[1756573373543,0.92443798,109060.0,109050.0,0.3491721]
[1756573374190,0.58053567,109060.0,109050.0,0.3523721]
[1756573376500,0.5633131,109060.0,109050.0,0.3523721]
[1756573376709,0.58053578,109060.0,109050.0,0.3523721]
[1756573381465,0.05125818,109060.0,109050.0,0.3523721]
[1756573381672,0.39516049,109060.0,109050.0,0.3523721]
[1756573382135,0.05125818,109060.0,109050.0,0.3523721]
[1756573382275,0.05125818,109060.0,109050.0,0.81019324]
[1756573382464,0.04479968,109060.0,109050.0,0.83493127]
[1756573383281,0.04479968,109060.0,109050.0,0.49102896]
[1756573383485,0.04479968,109060.0,109050.0,0.83493127]
[1756573385643,0.04479968,109060.0,109050.0,0.68213127]
[1756573385882,0.57406728,109060.0,109050.0,0.47009014]
[1756573386062,0.57405119,109060.0,109050.0,0.44535211]
[1756573386265,0.57405119,109060.0,109050.0,0.3472421]
[1756573386931,0.57405119,109060.0,109050.0,0.1944021]
[1756573387148,0.57405119,109060.0,109050.0,0.3472821]
[1756573387353,0.57405119,109060.0,109050.0,0.3524421]
[1756573388758,0.23014888,109060.0,109050.0,0.3524421]
[1756573388982,0.57405119,109060.0,109050.0,0.3524421]
[1756573391978,0.3906659,109060.0,109050.0,0.3524421]
[1756573392826,0.04676359,109060.0,109050.0,0.3524421]
[1756573393076,0.57405119,109060.0,109050.0,0.1995621]
[1756573393279,0.57405119,109060.0,109050.0,0.3523621]
[1756573393520,0.57405119,109060.0,109050.0,0.16896]
[1756573393708,0.23014888,109060.0,109050.0,0.3523621]
[1756573393871,0.57405119,109060.0,109050.0,0.3523621]
[1756573396686,0.57405194,109060.0,109050.0,0.3523621]
[1756573400260,0.57405194,109060.0,109050.0,0.16896]
[1756573400978,0.57405194,109060.0,109050.0,0.16372]
[1756573401411,0.57405302,109060.0,109050.0,0.16372]
[1756573402286,0.58050627,109060.0,109050.0,0.16372]
[1756573402480,0.92440858,109060.0,109050.0,0.011]
[1756573402729,0.92714858,109060.0,109050.0,0.011]
[1756573402933,0.92714858,109060.0,109050.0,0.1638]
[1756573403354,0.23934396,109060.0,109050.0,0.1638]
[1756573403566,0.92714858,109060.0,109050.0,0.1638]
[1756573405318,0.92440859,109060.0,109050.0,0.1638]
[1756573407376,0.92440689,109060.0,109050.0,0.1638]
[1756573411725,0.92440689,109060.0,109050.0,0.011]
[1756573411899,0.92440689,109060.0,109050.0,0.16372]
[1756573412673,0.92440689,109060.0,109050.0,0.011]
[1756573412886,0.92440689,109060.0,109050.0,0.16372]
[1756573414404,0.92440741,109060.0,109050.0,0.011]
[1756573414723,0.92440741,109060.0,109050.0,0.16372]
[1756573417396,0.92440741,109060.0,109050.0,0.011]
[1756573417397,1.61104972,109060.0,109050.0,0.011]
[1756573417711,1.78359704,109060.0,109050.0,0.011]
[1756573417888,1.76639106,109060.0,109050.0,0.011]
[1756573418090,1.78360318,109060.0,109050.0,0.011]
[1756573423937,1.54242185,109060.0,109050.0,0.011]
[1756573424174,1.54091185,109060.0,109050.0,0.011]
[1756573424363,1.75187814,109060.0,109050.0,0.011]
[1756573427033,0.74841025,109060.0,109050.0,0.011]
[1756573427238,1.62739718,109060.0,109050.0,0.011]
[1756573427895,1.28349487,109060.0,109050.0,0.011]
[1756573428120,1.28349487,109060.0,109050.0,0.01848252]
[1756573428324,1.26366755,109060.0,109050.0,0.01848252]
[1756573428531,1.26364381,109060.0,109050.0,0.01848252]
[1756573432393,1.26241381,109060.0,109050.0,0.01848252]
[1756573433083,1.26364381,109060.0,109050.0,0.01848252]
[1756573434060,1.28345666,109060.0,109050.0,0.01848252]
[1756573436908,1.28345666,109060.0,109050.0,0.01619]
[1756573439221,1.28346654,109060.0,109050.0,0.01619]
[1756573439808,1.28346654,109060.0,109050.0,0.01848252]
[1756573440409,1.28346654,109060.0,109050.0,0.01619]
[1756573441221,1.28346654,109060.0,109050.0,0.01419]
[1756573441811,1.28346654,109060.0,109050.0,0.01631]
[1756573442890,1.43618654,109060.0,109050.0,0.011]
[1756573444386,0.59566192,109060.0,109050.0,0.0162]
[1756573444587,1.28346654,109060.0,109050.0,0.01849252]
[1756573445058,1.28346985,109060.0,109050.0,0.01849252]
[1756573445427,1.28346985,109060.0,109050.0,0.0162]
[1756573445715,1.78009216,109060.0,109050.0,0.011]
[1756573446427,1.43618985,109060.0,109050.0,0.011]
[1756573446544,1.43618985,109060.0,109050.0,0.01408]
[1756573448556,1.43621407,109060.0,109050.0,0.01408]
[1756573449652,1.43621407,109060.0,109050.0,0.01637252]
[1756573451623,1.43621407,109060.0,109050.0,0.01408]
[1756573451842,1.28349407,109060.0,109050.0,0.01849252]
[1756573452288,1.28226407,109060.0,109050.0,0.20189462]
[1756573452456,1.28226407,109060.0,109050.0,0.1996021]
[1756573452655,1.28229038,109060.0,109050.0,0.1996021]
[1756573453290,1.28228676,109060.0,109050.0,0.1996021]
[1756573453692,1.26245122,109060.0,109050.0,0.1996021]
[1756573454174,0.39516362,109060.0,109050.0,0.1996021]
[1756573454317,0.05126131,109060.0,109050.0,0.1996021]
[1756573454521,0.39516362,109060.0,109050.0,0.1996021]
[1756573455376,0.38870536,109060.0,109050.0,0.1996021]
[1756573456124,0.04480305,109060.0,109050.0,0.2701621]
[1756573456330,0.38870536,109060.0,109050.0,0.2701621]
[1756573458977,0.38867524,109060.0,109050.0,0.2701621]
[1756573462646,0.38867524,109060.0,109050.0,0.70704442]
[1756573462647,0.04477293,109060.0,109050.0,0.70704442]
[1756573462866,0.34390231,109070.0,109060.0,0.18338529]
[1756573463091,0.8674545,109080.0,109070.0,0.18336847]
[1756573463303,0.89230852,109080.0,109070.0,0.18652847]
[1756573463542,0.91988252,109080.0,109070.0,0.18652847]
[1756573464432,1.26378483,109080.0,109070.0,0.18652847]
[1756573464613,1.26378483,109080.0,109070.0,0.18866847]
[1756573464815,1.26378483,109080.0,109070.0,0.19666847]
[1756573465458,1.25734192,109080.0,109070.0,0.19666847]
[1756573469328,1.27169226,109080.0,109070.0,0.19666847]
[1756573469762,1.27167702,109080.0,109070.0,0.34938847]
[1756573470656,1.27167638,109080.0,109070.0,0.34938847]
[1756573472381,1.25732604,109080.0,109070.0,0.34938847]
[1756573472585,0.91732604,109080.0,109070.0,0.34938847]
[1756573473225,0.9173259,109080.0,109070.0,0.34938847]
[1756573474738,0.9173259,109080.0,109070.0,0.19666847]
[1756573474947,0.9173259,109080.0,109070.0,0.34934847]
[1756573476138,0.93167626,109080.0,109070.0,0.34934847]
[1756573477535,1.27167626,109080.0,109070.0,0.34934847]
[1756573478673,1.27811696,109080.0,109070.0,0.34934847]
[1756573478879,0.59031234,109080.0,109070.0,0.34934847]
[1756573479114,1.27811696,109080.0,109070.0,0.19666847]
[1756573479273,1.27167626,109080.0,109070.0,0.34934847]
[1756573479472,1.27811826,109080.0,109070.0,0.34934847]
[1756573480272,1.27811967,109080.0,109070.0,0.34934847]
[1756573480501,1.27813702,109080.0,109070.0,0.34934847]
[1756573480920,1.27813702,109080.0,109070.0,0.19666847]
[1756573481116,1.27813702,109080.0,109070.0,0.01116]
[1756573481324,1.27813702,109080.0,109070.0,0.16384]
[1756573484649,1.27813702,109080.0,109070.0,0.01116]
[1756573484856,1.27813702,109080.0,109070.0,0.1661321]
[1756573487073,1.27813702,109080.0,109070.0,0.1682721]
[1756573487667,1.27813702,109080.0,109070.0,0.35164057]
[1756573487869,1.27813702,109080.0,109070.0,0.34934847]
[1756573490822,1.26096564,109080.0,109070.0,0.34934847]
[1756573491030,1.27817757,109080.0,109070.0,0.34934847]
[1756573491175,1.27817757,109080.0,109070.0,0.16598]
[1756573491997,1.27817757,109080.0,109070.0,0.1682721]
[1756573493201,0.59037295,109080.0,109070.0,0.1682721]
[1756573493608,1.27817757,109080.0,109070.0,0.1682721]
[1756573494405,1.27818092,109080.0,109070.0,0.1682721]
[1756573496620,0.5903763,109080.0,109070.0,0.1682721]
[1756573496828,1.27695092,109080.0,109070.0,0.1933711]
[1756573497000,1.27695092,109080.0,109070.0,0.191079]
[1756573497592,1.27818092,109080.0,109070.0,0.191079]
[1756573497794,1.27818092,109080.0,109070.0,0.37444747]
[1756573500057,1.27695092,109080.0,109070.0,0.37444747]
[1756573500297,1.27695092,109080.0,109070.0,0.038399]
[1756573500510,1.27818092,109080.0,109070.0,0.185779]
[1756573500732,1.27895092,109080.0,109070.0,0.185779]
[1756573501157,1.27819047,109080.0,109070.0,0.185779]
[1756573501623,1.27173248,109080.0,109070.0,0.185779]
[1756573501838,1.27819049,109080.0,109070.0,0.033099]
[1756573502044,0.59038592,109080.0,109070.0,0.185779]
[1756573502266,1.27819054,109080.0,109070.0,0.185779]
[1756573502480,1.27819054,109080.0,109070.0,0.033099]
[1756573502705,1.27819054,109080.0,109070.0,0.185779]
[1756573503593,1.27819054,109080.0,109070.0,0.188949]
[1756573503804,0.58915592,109080.0,109070.0,0.37443747]
[1756573504016,1.27696054,109080.0,109070.0,0.37443747]
[1756573504433,1.27696054,109080.0,109070.0,0.191069]
[1756573504822,1.27696054,109080.0,109070.0,0.37443747]
[1756573505275,0.58915592,109080.0,109070.0,0.37443747]
[1756573505486,1.27696054,109080.0,109070.0,0.37443747]
[1756573507128,1.27696054,109080.0,109070.0,0.191069]
[1756573510919,1.27695738,109080.0,109070.0,0.191069]
[1756573511350,1.27695737,109080.0,109070.0,0.191069]
[1756573512589,1.27818737,109080.0,109070.0,0.191069]
[1756573512788,1.27818737,109080.0,109070.0,0.37443747]
[1756573514676,1.27818737,109080.0,109070.0,0.188989]
[1756573515492,1.27818737,109080.0,109070.0,0.191109]
[1756573515896,1.27818737,109080.0,109070.0,0.37447747]
[1756573516098,1.27695737,109080.0,109070.0,0.37447747]
[1756573517598,0.59893258,109080.0,109070.0,0.37447747]
[1756573517806,0.7594827,109080.0,109070.0,0.37447747]
[1756573518044,0.06912325,109080.0,109070.0,0.5589163]
[1756573518255,0.41302556,109080.0,109070.0,0.5589163]
[1756573518674,0.41302556,109080.0,109070.0,0.5559163]
[1756573518872,0.41302556,109080.0,109070.0,0.5579163]
[1756573519211,0.3986752,109080.0,109070.0,0.5579163]
[1756573519411,0.3986752,109080.0,109070.0,0.5559163]
[1756573520831,0.3986752,109080.0,109070.0,0.5599163]
[1756573521625,0.39865449,109080.0,109070.0,0.5599163]
[1756573524784,0.7425568,109080.0,109070.0,0.5599163]
[1756573524989,0.73277697,109080.0,109070.0,0.5599163]
[1756573528523,0.04497235,109080.0,109070.0,0.5599163]
[1756573528740,0.38887466,109080.0,109070.0,0.5599163]
[1756573529453,0.36130066,109080.0,109070.0,0.5599163]
[1756573530717,0.37112073,109080.0,109070.0,0.5599163]
[1756573531130,0.37112073,109080.0,109070.0,0.4071963]
[1756573531332,0.37112073,109080.0,109070.0,0.5598763]
[1756573531941,0.39868973,109080.0,109070.0,0.5598763]
[1756573532408,0.3986764,109080.0,109070.0,0.5598763]
[1756573532751,0.39867633,109080.0,109070.0,0.5598763]
[1756573532952,0.38149138,109080.0,109070.0,0.5598763]
[1756573533216,0.39867633,109080.0,109070.0,0.5598763]
[1756573534033,0.39867633,109080.0,109070.0,0.4071963]
[1756573534238,0.39867633,109080.0,109070.0,0.5598763]
[1756573534802,0.37110733,109080.0,109070.0,0.5598763]
[1756573535853,0.0173863,109080.0,109070.0,0.5598763]
[1756573536077,0.36128861,109080.0,109070.0,0.5598763]
[1756573536706,0.0173863,109080.0,109070.0,0.5598763]
[1756573536904,0.70519092,109080.0,109070.0,0.5598763]
[1756573538218,0.36128861,109080.0,109070.0,0.5598763]
[1756573540337,0.70519092,109080.0,109070.0,0.5598763]
[1756573540743,0.70393092,109080.0,109070.0,0.5598763]
[1756573542289,0.34390231,109080.0,109070.0,0.5598763]
[1756573543083,0.68780462,109080.0,109070.0,0.5598763]
[1756573543425,0.22106789,109090.0,109080.0,0.18335166]
[1756573543665,0.5649702,109090.0,109080.0,0.18335166]
[1756573543861,0.5662002,109090.0,109080.0,0.19902357]
[1756573544080,0.5662002,109090.0,109080.0,0.18629166]
[1756573544764,0.5662002,109090.0,109080.0,0.18829166]
[1756573544964,0.5662002,109090.0,109080.0,0.19040166]
[1756573545358,0.57265094,109090.0,109080.0,0.19040166]
[1756573545552,0.57265094,109090.0,109080.0,0.19240166]
[1756573547479,0.57265094,109090.0,109080.0,0.19029166]
[1756573547902,0.22874863,109090.0,109080.0,0.19029166]
[1756573548110,0.57265094,109090.0,109080.0,0.19029166]
[1756573548554,0.56288125,109090.0,109080.0,0.19029166]
[1756573549191,0.90678356,109090.0,109080.0,0.19029166]
[1756573550314,0.90678356,109090.0,109080.0,0.19224166]
[1756573550927,0.91644168,109090.0,109080.0,0.19224166]
[1756573553396,0.91644718,109090.0,109080.0,0.19224166]
[1756573553805,0.90678906,109090.0,109080.0,0.19224166]
[1756573554007,0.90678907,109090.0,109080.0,0.19224166]
[1756573554208,0.92400574,109090.0,109080.0,0.19224166]
[1756573555326,0.23620112,109090.0,109080.0,0.19224166]
[1756573555469,0.58010343,109090.0,109080.0,0.19224166]
[1756573556435,0.58988571,109090.0,109080.0,0.19224166]
[1756573557041,0.58988572,109090.0,109080.0,0.19224166]
[1756573558217,0.58988572,109090.0,109080.0,0.19029166]
[1756573559083,0.93378803,109090.0,109080.0,0.19029166]
[1756573560053,0.93378803,109090.0,109080.0,0.19224166]
[1756573560496,0.58988599,109090.0,109080.0,0.19224166]
[1756573560665,0.40655048,109090.0,109080.0,0.19224166]
[1756573562336,0.40532048,109090.0,109080.0,0.19224166]
[1756573562789,0.39886422,109090.0,109080.0,0.19224166]
[1756573562970,0.40532058,109090.0,109080.0,0.19224166]
[1756573563212,0.40182741,109090.0,109080.0,0.19224166]
[1756573563434,0.40182751,109090.0,109080.0,0.19224166]
[1756573564286,0.40182751,109090.0,109080.0,0.21318048]
[1756573568221,0.39204523,109090.0,109080.0,0.21318048]
[1756573568973,0.39204523,109090.0,109080.0,0.30616049]
[1756573572364,0.38558885,109090.0,109080.0,0.30616049]
[1756573573025,0.36111933,109090.0,109080.0,0.30616049]
[1756573573227,0.34390231,109090.0,109080.0,0.30616049]
[1756573573413,0.36111724,109090.0,109080.0,0.30616049]
[1756573573975,0.36111206,109090.0,109080.0,0.30616049]
[1756573576048,0.01720975,109090.0,109080.0,0.30616049]
[1756573576270,0.36111206,109090.0,109080.0,0.30616049]
[1756573579218,0.36111206,109090.0,109080.0,0.45884049]
[1756573579980,0.36111206,109090.0,109080.0,0.30616049]
[1756573580116,0.36111206,109090.0,109080.0,0.45880049]
[1756573580724,0.38100591,109100.0,109090.0,0.18333486]
[1756573580949,0.74342319,109100.0,109090.0,0.25385486]
[1756573581493,0.23893662,109100.0,109090.0,0.40649486]
[1756573581700,0.92674124,109100.0,109090.0,0.40649486]
[1756573582110,0.93319017,109100.0,109090.0,0.40649486]
[1756573582734,0.93319017,109100.0,109090.0,0.07052]
[1756573582944,0.93396017,109100.0,109090.0,0.07152]
[1756573583151,0.93319017,109100.0,109090.0,0.22516]
[1756573583353,0.93319017,109100.0,109090.0,0.40849486]
[1756573583567,0.0608375,109100.0,109090.0,0.41351486]
[1756573583775,0.74864212,109100.0,109090.0,0.41351486]
[1756573583982,0.74987104,109100.0,109090.0,0.41351486]
[1756573584585,0.93318904,109100.0,109090.0,0.41153486]
[1756573585688,0.05438765,109100.0,109090.0,0.41351486]
[1756573585886,0.74219227,109100.0,109090.0,0.41351486]
[1756573586533,0.05438765,109100.0,109090.0,0.41351486]
[1756573586754,0.74219227,109100.0,109090.0,0.41351486]
[1756573587186,0.39828996,109100.0,109090.0,0.52743369]
[1756573587374,0.37072496,109100.0,109090.0,0.52743369]
[1756573587570,0.37072039,109100.0,109090.0,0.52743369]
[1756573587791,0.02681808,109100.0,109090.0,0.52743369]
[1756573588010,0.37072039,109100.0,109090.0,0.52743369]
[1756573588432,0.00962591,109100.0,109090.0,0.52743369]
[1756573588634,0.35352822,109100.0,109090.0,0.52743369]
[1756573588849,0.35352822,109100.0,109090.0,0.52543369]
[1756573589082,0.35352822,109100.0,109090.0,0.52743369]
[1756573589297,0.00962591,109100.0,109090.0,0.53143369]
[1756573589510,0.35352822,109100.0,109090.0,0.52943369]
[1756573589939,0.35352822,109100.0,109090.0,0.53243369]
[1756573590730,0.00962591,109100.0,109090.0,0.53243369]
[1756573590936,0.35352822,109100.0,109090.0,0.53243369]
[1756573591421,0.35352822,109100.0,109090.0,0.37979369]
[1756573591622,0.35352822,109100.0,109090.0,0.53475369]
[1756573591828,0.00962591,109100.0,109090.0,0.53475369]
[1756573592158,0.35352822,109100.0,109090.0,0.53475369]
[1756573593105,0.19417396,109100.0,109090.0,0.07752]
[1756573593318,0.71661452,109100.0,109090.0,0.007]
[1756573593516,0.74341052,109100.0,109090.0,0.34810654]
[1756573593664,0.74341052,109100.0,109090.0,0.34581486]
[1756573593930,0.74341052,109100.0,109090.0,0.34281486]
[1756573594473,0.74341372,109100.0,109090.0,0.34281486]
[1756573594905,0.74341372,109100.0,109090.0,0.33881486]
[1756573595326,0.92673177,109100.0,109090.0,0.34081486]
[1756573595521,0.92673177,109100.0,109090.0,0.34281486]
[1756573597204,0.92673177,109100.0,109090.0,0.36375368]
[1756573597851,0.92673177,109100.0,109090.0,0.02493882]
[1756573598077,0.23892715,109100.0,109090.0,0.36711368]
[1756573598294,0.92673177,109100.0,109090.0,0.36407368]
[1756573599098,0.92673177,109100.0,109090.0,0.18073882]
[1756573599849,0.92673177,109100.0,109090.0,0.36407368]
[1756573603070,0.92673177,109100.0,109090.0,0.36711368]
[1756573605131,0.92674368,109100.0,109090.0,0.36711368]
[1756573606679,0.92674368,109100.0,109090.0,0.43763368]
[1756573610623,0.92674368,109100.0,109090.0,0.43961368]
[1756573614883,0.74219563,109100.0,109090.0,0.53259369]
[1756573615087,0.05439101,109100.0,109090.0,0.53259369]
[1756573615284,0.35352822,109100.0,109090.0,0.53259369]
[1756573616292,0.35352822,109100.0,109090.0,0.53059369]
[1756573616494,0.35352822,109100.0,109090.0,0.53459369]
[1756573616721,0.35352822,109100.0,109090.0,0.53259369]
[1756573617022,0.35352822,109100.0,109090.0,0.53459369]
[1756573617239,0.35352822,109100.0,109090.0,0.56749993]
[1756573617554,0.35352822,109100.0,109090.0,0.56549993]
[1756573617757,0.35352822,109100.0,109090.0,0.56849993]
[1756573621850,8.731e-05,109100.0,109090.0,0.56849993]
[1756573622061,0.34398962,109100.0,109090.0,0.56849993]
[1756573622653,0.35334281,109100.0,109090.0,0.56849993]
[1756573624350,0.35334281,109100.0,109090.0,0.53559369]
[1756573626756,0.35334281,109100.0,109090.0,0.53507369]
[1756573627188,0.0094405,109100.0,109090.0,0.56797993]
[1756573627414,0.35334281,109100.0,109090.0,0.56797993]
[1756573628066,0.34398962,109100.0,109090.0,0.56797993]
[1756573628500,0.0279707,109110.0,109100.0,0.20425687]
[1756573628729,0.02844678,109110.0,109100.0,0.29723688]
[1756573628949,0.02844678,109110.0,109100.0,0.30244688]
[1756573629215,0.02967678,109110.0,109100.0,0.30244688]
[1756573629432,0.04686285,109110.0,109100.0,0.30244688]
[1756573629650,0.04686285,109110.0,109100.0,0.30444688]
[1756573629869,0.39076516,109110.0,109100.0,0.30123688]
[1756573630087,0.39076516,109110.0,109100.0,0.45643688]
[1756573632755,0.39076516,109110.0,109100.0,0.30446688]
[1756573632983,0.91873872,109110.0,109100.0,0.27307883]
[1756573633203,0.91873872,109110.0,109100.0,0.02493882]
[1756573633425,0.91873872,109110.0,109100.0,0.18005882]
[1756573635961,0.90155265,109110.0,109100.0,0.18005882]
[1756573636171,0.91874298,109110.0,109100.0,0.18005882]
[1756573636586,0.92843432,109110.0,109100.0,0.18005882]
[1756573636816,0.92843432,109110.0,109100.0,0.004]
[1756573637028,0.92843432,109110.0,109100.0,0.15904]
[1756573637238,0.92843432,109110.0,109100.0,0.34235805]
[1756573637672,0.92766432,109110.0,109100.0,0.34235805]
[1756573639127,0.92766432,109110.0,109100.0,0.18731805]
[1756573639331,0.92766432,109110.0,109100.0,0.34227805]
[1756573641301,0.93411319,109110.0,109100.0,0.34227805]
[1756573642906,0.9341217,109110.0,109100.0,0.34227805]
[1756573646635,0.91047399,109110.0,109100.0,0.34227805]
[1756573646847,0.93412721,109110.0,109100.0,0.004]
[1756573647067,0.93412721,109110.0,109100.0,0.1588]
[1756573648783,0.93412721,109110.0,109100.0,0.004]
[1756573648984,0.93412721,109110.0,109100.0,0.15876]
[1756573650462,0.92443587,109110.0,109100.0,0.15876]
[1756573652826,0.92443587,109110.0,109100.0,0.34515805]
[1756573653971,0.23663125,109110.0,109100.0,0.34718805]
[1756573654397,0.58053356,109110.0,109100.0,0.34718805]
[1756573655100,0.57930356,109110.0,109100.0,0.34718805]
[1756573655665,0.55085678,109110.0,109100.0,0.34718805]
[1756573656042,0.57842078,109110.0,109100.0,0.34718805]
[1756573656877,0.39511953,109110.0,109100.0,0.34718805]
[1756573657293,0.37791793,109110.0,109100.0,0.34718805]
[1756573657526,0.39512225,109110.0,109100.0,0.34718805]
[1756573658029,0.5784235,109110.0,109100.0,0.34718805]
[1756573660327,0.5796535,109110.0,109100.0,0.34718805]
[1756573660549,0.5784235,109110.0,109100.0,0.34718805]
[1756573662343,0.23452119,109110.0,109100.0,0.34718805]
[1756573662487,0.5784235,109110.0,109100.0,0.34718805]
[1756573664506,0.92232581,109110.0,109100.0,0.34718805]
[1756573665436,0.73902456,109110.0,109100.0,0.34718805]
[1756573666520,0.39512225,109110.0,109100.0,0.34718805]
[1756573667389,0.39512225,109110.0,109100.0,0.19242805]
[1756573667592,0.5784235,109110.0,109100.0,0.34706805]
[1756573667724,0.38867063,109110.0,109100.0,0.34706805]
[1756573667926,0.39513446,109110.0,109100.0,0.34706805]
[1756573668664,0.39513426,109110.0,109100.0,0.34706805]
[1756573669037,0.57843551,109110.0,109100.0,0.41754805]
[1756573669843,0.39513426,109110.0,109100.0,0.26290805]
[1756573670076,0.39513426,109110.0,109100.0,0.41754805]
[1756573670843,0.57843551,109110.0,109100.0,0.41754805]
[1756573672475,0.38867951,109110.0,109100.0,0.41754805]
[1756573672891,0.57198076,109110.0,109100.0,0.41754805]
[1756573675922,0.22930845,109110.0,109100.0,0.26290805]
[1756573676135,0.22930845,109110.0,109100.0,0.41738805]
[1756573676136,0.91711307,109110.0,109100.0,0.41738805]
[1756573676573,0.57321076,109110.0,109100.0,0.41738805]
[1756573676781,0.92356703,109110.0,109100.0,0.23439]
[1756573677391,0.92356703,109110.0,109100.0,0.41770805]
[1756573678467,0.91711307,109110.0,109100.0,0.41770805]
[1756573678703,0.92356434,109110.0,109100.0,0.34722805]
[1756573679419,0.92356434,109110.0,109100.0,0.004]
[1756573679600,0.92356434,109110.0,109100.0,0.15876]
[1756573680240,0.92356434,109110.0,109100.0,0.004]
[1756573680441,0.92356434,109110.0,109100.0,0.15876]
[1756573680859,1.60746665,109110.0,109100.0,0.15876]
[1756573681072,1.26433434,109110.0,109100.0,0.15876]
[1756573681944,1.26433434,109110.0,109100.0,0.15872]
[1756573682364,1.60823665,109110.0,109100.0,0.004]
[1756573682564,1.60823665,109110.0,109100.0,0.15872]
[1756573682775,1.63402092,109110.0,109100.0,0.15872]
[1756573683538,1.60823665,109110.0,109100.0,0.15872]
[1756573684739,1.60746665,109110.0,109100.0,0.15872]
[1756573685134,1.26356434,109110.0,109100.0,0.15872]
[1756573687911,1.24634969,109110.0,109100.0,0.15872]
[1756573688108,1.26354922,109110.0,109100.0,0.15872]
[1756573689179,0.5757446,109110.0,109100.0,0.15872]
[1756573689385,1.60745153,109110.0,109100.0,0.15872]
[1756573690548,1.26354922,109110.0,109100.0,0.15872]
[1756573691572,3.84347552,109110.0,109100.0,0.15872]
[1756573691779,3.84347552,109110.0,109100.0,0.004]
[1756573691780,4.34270783,109110.0,109100.0,0.004]
[1756573691953,4.38842022,109110.0,109100.0,0.004]
[1756573692559,4.38842022,109110.0,109100.0,0.002]
[1756573693228,0.52331805,109100.0,109090.0,0.22504]
[1756573693359,4.15983063,109100.0,109090.0,0.22504]
[1756573693561,1.57990263,109100.0,109090.0,0.22504]
[1756573693755,1.60747163,109100.0,109090.0,0.22504]